fUST/lending_fUST_20250623
["ID","MTS","AMOUNT","RATE_DAILY","PERIOD"]
[367143380,1750669840747,-649.41,0.00021917,2]
[367143381,1750669840756,-460.0,0.00021917,2]
[367143382,1750669840766,-460.0,0.00021917,2]
[367143383,1750669840775,-1321.66,0.00021917,2]
[367143384,1750669840784,-460.0,0.00021917,2]
[367143385,1750669840794,-460.0,0.00021917,2]
[367143386,1750669840803,-460.0,0.00021917,2]
[367143387,1750669840812,-500.0,0.00021917,2]
[367143388,1750669840822,-460.0,0.00021917,2]
[367143389,1750669840831,-291.26242139,0.00021917,2]
[367143390,1750669840841,-460.0,0.00021917,2]
[367143391,1750669840850,-460.0,0.00021917,2]
[367143392,1750669840859,-460.0,0.00021917,2]
[367143393,1750669840869,-481.46,0.00021917,2]
[367143394,1750669840878,-460.0,0.00021917,2]
[367143395,1750669840888,-383.897675,0.00021917,2]
[367143396,1750669840897,-460.0,0.00021917,2]
[367143397,1750669840907,-460.0,0.00021917,2]
[367143398,1750669840916,-460.0,0.00021917,2]
[367143399,1750669840925,-1099.78,0.00021917,2]
[367143400,1750669840935,-500.0,0.00021917,2]
[367143401,1750669840944,-460.0,0.00021917,2]
[367143402,1750669840954,-500.0,0.00021917,2]
[367143403,1750669840963,-460.0,0.00021917,2]
[367143404,1750669840973,-460.0,0.00021917,2]
[367143405,1750669840983,-460.0,0.00021917,2]
[367143406,1750669840992,-2125.74,0.00021917,2]
[367143407,1750669841001,-460.0,0.00021917,2]
[367143408,1750669841011,-460.0,0.00021917,2]
[367143409,1750669841020,-460.0,0.00021917,2]
[367143410,1750669841030,-1491.72,0.00021917,2]
[367143411,1750669841040,-460.0,0.00021917,2]
[367143412,1750669841049,-460.0,0.00021917,2]
[367143413,1750669841059,-460.0,0.00021917,2]
[367143414,1750669841069,-5688.26,0.00021917,2]
[367143415,1750669841079,-436.42168427,0.00021917,2]
[367143416,1750669841088,-1101.54,0.00021917,2]
[367143417,1750669841097,-681.15,0.00021917,2]
[367143418,1750669841107,-460.0,0.00021917,2]
[367143419,1750669841116,-460.0,0.00021917,2]
[367143420,1750669841125,-262.44590082,0.00021917,2]
[367143421,1750669841135,-7202.62,0.00021917,2]
[367143422,1750669841144,-460.0,0.00021917,2]
[367143423,1750669841154,-460.0,0.00021917,2]
[367143424,1750669841163,-460.0,0.00021917,2]
[367143425,1750669841172,-460.0,0.00021917,2]
[367143426,1750669841182,-460.0,0.00021917,2]
[367143427,1750669841191,-445.17769702,0.00021917,2]
[367143428,1750669841202,-703.34,0.00021917,2]
[367143429,1750669841211,-460.0,0.00021917,2]
[367143430,1750669841220,-1307.29,0.00021917,2]
[367143431,1750669841230,-698.54,0.00021917,2]
[367143432,1750669841239,-460.0,0.00021917,2]
[367143433,1750669841248,-552.30136842,0.00021917,2]
[367143434,1750669841259,-460.0,0.00021917,2]
[367143435,1750669841268,-460.0,0.00021917,2]
[367143436,1750669841278,-460.0,0.00021917,2]
[367143437,1750669841288,-460.0,0.00021917,2]
[367143438,1750669841298,-460.0,0.00021917,2]
[367143439,1750669841308,-514.31,0.00021917,2]
[367143440,1750669841317,-798.98,0.00021917,2]
[367143441,1750669841327,-460.0,0.00021917,2]
[367143442,1750669841337,-604.57556049,0.00021917,2]
[367143443,1750669841347,-460.0,0.00021917,2]
[367143444,1750669841356,-460.0,0.00021917,2]
[367143445,1750669841366,-460.0,0.00021917,2]
[367143446,1750669841375,-460.0,0.00021917,2]
[367143447,1750669841385,-447.00879276,0.00021917,2]
[367143448,1750669841400,-1039.35,0.00021917,2]
[367143449,1750669841409,-460.0,0.00021917,2]
[367143450,1750669841419,-460.0,0.00021917,2]
[367143451,1750669841428,-742.51,0.00021917,2]
[367143452,1750669841438,-460.0,0.00021917,2]
[367143453,1750669841448,-366.2124688,0.00021917,2]
[367143454,1750669841457,-652.77,0.00021917,2]
[367143455,1750669841470,-612.92,0.00021917,2]
[367143456,1750669841480,-460.49,0.00021917,2]
[367143457,1750669841490,-460.0,0.00021917,2]
[367143458,1750669841500,-460.0,0.00021917,2]
[367143459,1750669841510,-460.0,0.00021917,2]
[367143460,1750669841522,-944.35,0.00021917,2]
[367143461,1750669841531,-460.0,0.00021917,2]
[367143462,1750669841541,-460.0,0.00021917,2]
[367143463,1750669841551,-1779.26,0.00021917,2]
[367143464,1750669841563,-460.0,0.00021917,2]
[367143465,1750669841573,-460.0,0.00021917,2]
[367143466,1750669841582,-460.0,0.00021917,2]
[367143467,1750669841592,-460.0,0.00021917,2]
[367143468,1750669841601,-460.0,0.00021917,2]
[367143469,1750669841611,-300.0,0.00021917,2]
[367143470,1750669841620,-918.9,0.00021917,2]
[367143471,1750669841630,-487.28631749,0.00021917,2]
[367143472,1750669841639,-1566.89,0.00021917,2]
[367143473,1750669841649,-1566.89,0.00021917,2]
[367143474,1750669841659,-460.0,0.00021917,2]
[367143475,1750669841668,-460.0,0.00021917,2]
[367143476,1750669841678,-460.0,0.00021917,2]
[367143477,1750669841687,-1566.89,0.00021917,2]
[367143478,1750669841697,-460.0,0.00021917,2]
[367143479,1750669841706,-1566.89,0.00021917,2]
[367143480,1750669841717,-1566.89,0.00021917,2]
[367143481,1750669841725,-1566.89,0.00021917,2]
[367143482,1750669841736,-1566.89,0.00021917,2]
[367143483,1750669841746,-1566.89,0.00021917,2]
[367143484,1750669841755,-1566.89,0.00021917,2]
[367143485,1750669841764,-1566.89,0.00021917,2]
[367143486,1750669841774,-1566.89,0.00021917,2]
[367143487,1750669841783,-1566.89,0.00021917,2]
[367143488,1750669841793,-1566.89,0.00021917,2]
[367143489,1750669841803,-1566.89,0.00021917,2]
[367143490,1750669841813,-460.0,0.00021917,2]
[367143491,1750669841822,-521.61,0.00021917,2]
[367143492,1750669841831,-460.0,0.00021917,2]
[367143493,1750669841841,-2683.33,0.00021917,2]
[367143494,1750669841851,-582.7,0.00021917,2]
[367143495,1750669841861,-460.0,0.00021917,2]
[367143496,1750669841871,-460.0,0.00021917,2]
[367143497,1750669841880,-460.0,0.00021917,2]
[367143498,1750669841891,-3018.27,0.00021917,2]
[367143499,1750669841900,-200.6829003,0.00021917,2]
[367143500,1750669841910,-875.32,0.00021917,2]
[367143501,1750669841919,-460.0,0.00021917,2]
[367143502,1750669841928,-460.0,0.00021917,2]
[367143503,1750669841938,-460.0,0.00021917,2]
[367143504,1750669841947,-460.0,0.00021917,2]
[367143505,1750669841956,-4903.45,0.00021917,2]
[367143506,1750669841965,-460.0,0.00021917,2]
[367143507,1750669841975,-460.0,0.00021917,2]
[367143508,1750669841984,-460.0,0.00021917,2]
[367143509,1750669841994,-460.0,0.00021917,2]
[367143510,1750669842003,-460.0,0.00021917,2]
[367143511,1750669842013,-6605.39,0.00021917,2]
[367143512,1750669842022,-1746.25,0.00021917,2]
[367143513,1750669842031,-460.0,0.00021917,2]
[367143514,1750669842041,-1958.28,0.00021917,2]
[367143515,1750669842050,-500.0,0.00021917,2]
[367143516,1750669842060,-460.0,0.00021917,2]
[367143517,1750669842070,-460.0,0.00021917,2]
[367143518,1750669842079,-864.04,0.00021917,2]
[367143519,1750669842089,-460.0,0.00021917,2]
[367143520,1750669842098,-875.79,0.00021917,2]
[367143521,1750669842108,-874.1,0.00021917,2]
[367143522,1750669842118,-460.0,0.00021917,2]
[367143523,1750669842127,-460.0,0.00021917,2]
[367143524,1750669842138,-460.0,0.00021917,2]
[367143525,1750669842148,-520.13,0.00021917,2]
[367143526,1750669842158,-460.0,0.00021917,2]
[367143527,1750669842167,-460.0,0.00021917,2]
[367143528,1750669842177,-460.0,0.00021917,2]
[367143529,1750669842187,-460.0,0.00021917,2]
[367143530,1750669842197,-1509.2,0.00021917,2]
[367143531,1750669842207,-460.0,0.00021917,2]
[367143532,1750669842216,-2287.98,0.00021917,2]
[367143533,1750669842225,-671.84,0.00021917,2]
[367143534,1750669842235,-460.0,0.00021917,2]
[367143535,1750669842245,-460.0,0.00021917,2]
[367143536,1750669842255,-460.0,0.00021917,2]
[367143537,1750669842264,-1143.3,0.00021917,2]
[367143538,1750669842275,-460.0,0.00021917,2]
[367143539,1750669842285,-483.58,0.00021917,2]
[367143541,1750669842294,-460.0,0.00021917,2]
[367143542,1750669842305,-769.57,0.00021917,2]
[367143543,1750669842314,-460.0,0.00021917,2]
[367143544,1750669842324,-734.59,0.00021917,2]
[367143545,1750669842334,-460.0,0.00021917,2]
[367143546,1750669842343,-460.0,0.00021917,2]
[367143547,1750669842352,-274.91846312,0.00021917,2]
[367143548,1750669842362,-2393.58,0.00021917,2]
[367143549,1750669842371,-589.17,0.00021917,2]
[367143550,1750669842380,-460.0,0.00021917,2]
[367143551,1750669842393,-1338.91,0.00021917,2]
[367143552,1750669842403,-460.0,0.00021917,2]
[367143553,1750669842413,-592.05,0.00021917,2]
[367143554,1750669842422,-460.0,0.00021917,2]
[367143555,1750669842432,-460.0,0.00021917,2]
[367143556,1750669842442,-460.0,0.00021917,2]
[367143557,1750669842451,-460.0,0.00021917,2]
[367143558,1750669842461,-515.01,0.00021917,2]
[367143559,1750669842473,-460.0,0.00021917,2]
[367143560,1750669842482,-1866.18,0.00021917,2]
[367143561,1750669842492,-460.0,0.00021917,2]
[367143562,1750669842501,-500.0,0.00021917,2]
[367143563,1750669842510,-460.0,0.00021917,2]
[367143564,1750669842520,-500.0,0.00021917,2]
[367143565,1750669842529,-500.0,0.00021917,2]
[367143566,1750669842539,-460.0,0.00021917,2]
[367143567,1750669842548,-500.0,0.00021917,2]
[367143568,1750669842558,-607.68507989,0.00021917,2]
[367143569,1750669842568,-500.0,0.00021917,2]
[367143570,1750669842577,-5898.42,0.00021917,2]
[367143571,1750669842589,-1002.73,0.00021917,2]
[367143572,1750669842599,-5866.25,0.00021917,2]
[367143573,1750669842608,-460.0,0.00021917,2]
[367143574,1750669842618,-521.08,0.00021917,2]
[367143575,1750669842628,-460.0,0.00021917,2]
[367143576,1750669842639,-460.0,0.00021917,2]
[367143578,1750669842649,-460.0,0.00021917,2]
[367143579,1750669842658,-4203.1,0.00021917,2]
[367143580,1750669842668,-652.33,0.00021917,2]
[367143581,1750669842678,-460.0,0.00021917,2]
[367143582,1750669842687,-460.0,0.00021917,2]
[367143584,1750669842697,-460.0,0.00021917,2]
[367143585,1750669842707,-460.0,0.00021917,2]
[367143586,1750669842717,-460.0,0.00021917,2]
[367143587,1750669842727,-7954.74,0.00021917,2]
[367143588,1750669842736,-460.0,0.00021917,2]
[367143589,1750669842746,-2406.84,0.00021917,2]
[367143590,1750669842756,-460.0,0.00021917,2]
[367143591,1750669842766,-623.55,0.00021917,2]
[367143592,1750669842776,-460.0,0.00021917,2]
[367143593,1750669842787,-801.51,0.00021917,2]
[367143594,1750669842798,-460.0,0.00021917,2]
[367143595,1750669842807,-460.0,0.00021917,2]
[367143596,1750669842817,-1272.61,0.00021917,2]
[367143597,1750669842827,-541.43,0.00021917,2]
[367143598,1750669842836,-460.0,0.00021917,2]
[367143599,1750669842846,-460.0,0.00021917,2]
[367143600,1750669842856,-460.0,0.00021917,2]
[367143601,1750669842866,-460.0,0.00021917,2]
[367143602,1750669842875,-460.0,0.00021917,2]
[367143603,1750669842885,-1006.48,0.00021917,2]
[367143604,1750669842894,-460.0,0.00021917,2]
[367143605,1750669842904,-610.46,0.00021917,2]
[367143606,1750669842913,-460.0,0.00021917,2]
[367143607,1750669842923,-460.0,0.00021917,2]
[367143608,1750669842932,-460.0,0.00021917,2]
[367143609,1750669842942,-594.16,0.00021917,2]
[367143610,1750669842951,-932.89,0.00021917,2]
[367143611,1750669842961,-745.37,0.00021917,2]
[367143612,1750669842971,-460.0,0.00021917,2]
[367143613,1750669842980,-6354.03,0.00021917,2]
[367143614,1750669842989,-254.78552679,0.00021917,2]
[367143615,1750669842999,-500.0,0.00021917,2]
[367143616,1750669843010,-460.0,0.00021917,2]
[367143617,1750669843019,-1093.05,0.00021917,2]
[367143618,1750669843030,-460.0,0.00021917,2]
[367143619,1750669843040,-396.47514336,0.00021917,2]
[367143620,1750669843221,-460.0,0.00021917,2]
[367143621,1750669843231,-460.0,0.00021917,2]
[367143622,1750669843241,-460.0,0.00021917,2]
[367143623,1750669843250,-460.0,0.00021917,2]
[367143624,1750669843259,-632.99,0.00021917,2]
[367143625,1750669843268,-942.31,0.00021917,2]
[367143626,1750669843279,-460.0,0.00021917,2]
[367143627,1750669843289,-460.0,0.00021917,2]
[367143628,1750669843297,-880.51,0.00021917,2]
[367143629,1750669843306,-726.61,0.00021917,2]
[367143630,1750669843316,-460.0,0.00021917,2]
[367143631,1750669843326,-2327.72,0.00021917,2]
[367143632,1750669843336,-460.0,0.00021917,2]
[367143633,1750669843346,-460.0,0.00021917,2]
[367143634,1750669843356,-874.88,0.00021917,2]
[367143635,1750669843366,-460.0,0.00021917,2]
[367143636,1750669843375,-1267.21,0.00021917,2]
[367143637,1750669843386,-621.04,0.00021917,2]
[367143638,1750669843401,-257.80973196,0.00021917,2]
[367143639,1750669843410,-150.0,0.00021918,2]
[367143640,1750669843420,-160.0,0.00021924,2]
[367143641,1750669843430,-846.53928378,0.00021924,2]
[367143642,1750669843441,-836.70095952,0.00021924,2]
[367143643,1750669843451,-213.63163053,0.00021924,2]
[367143644,1750669843460,-160.0,0.00021925,2]
[367143645,1750669843470,-500.0,0.00021973,2]
[367143646,1750669843481,-500.0,0.00021973,2]
[367143647,1750669843491,-500.0,0.00021973,2]
[367143648,1750669843501,-500.0,0.00021973,2]
[367143649,1750669843510,-500.0,0.00021973,2]
[367143650,1750669843520,-500.0,0.00021973,2]
[367143651,1750669843530,-500.0,0.00021973,2]
[367143652,1750669843540,-571.59,0.00021999,2]
[367143653,1750669843549,-3326.63,0.00022,7]
[367143654,1750669843559,-7601.65,0.00022,7]
[367143655,1750669843568,-2000.0,0.00022,4]
[367143656,1750669843577,-846.53928378,0.00022,7]
[367143657,1750669843588,-187.0,0.00022,2]
[367143658,1750669843597,-160.90123036,0.00022,7]
[367143659,1750669843606,-213.63163053,0.00022,7]
[367143660,1750669843616,-492.0122568,0.00022083,2]
[367143661,1750669843625,-184.93961047,0.00022091,2]
[367143662,1750669843634,-192.571855,0.0002211,2]
[367143663,1750669843644,-153.0,0.00022123,2]
[367143664,1750669843653,-153.0,0.00022123,2]
[367143665,1750669843662,-153.0,0.00022124,2]
[367143666,1750669843672,-153.0,0.00022124,2]
[367143667,1750669843681,-153.0,0.00022124,2]
[367143668,1750669843691,-153.0,0.00022125,2]
[367143669,1750669843700,-153.0,0.00022125,2]
[367143670,1750669843710,-153.0,0.00022125,2]
[367143671,1750669843720,-153.0,0.00022125,2]
[367143672,1750669843729,-153.0,0.00022126,2]
[367143673,1750669843738,-153.0,0.00022126,2]
[367143674,1750669843748,-153.0,0.00022126,2]
[367143675,1750669843757,-153.0,0.00022126,2]
[367143676,1750669843766,-153.0,0.00022126,2]
[367143677,1750669843775,-153.0,0.00022127,2]
[367143678,1750669843784,-153.0,0.00022127,2]
[367143679,1750669843793,-153.0,0.00022128,2]
[367143680,1750669843803,-153.0,0.00022128,2]
[367143681,1750669843812,-1566.89,0.00022143,2]
[367143682,1750669843821,-500.0,0.00022173,2]
[367143683,1750669843831,-500.0,0.00022173,2]
[367143684,1750669843840,-965.0,0.00022175,2]
[367143685,1750669843849,-654.0,0.00022175,2]
[367143686,1750669843858,-2161.0,0.00022175,2]
[367143687,1750669843867,-571.59,0.0002219,2]
[367143688,1750669843876,-571.59,0.0002219,2]
[367143689,1750669843886,-571.59,0.0002219,2]
[367143690,1750669843895,-571.59,0.0002219,2]
[367143691,1750669843904,-571.59,0.0002219,2]
[367143692,1750669843914,-571.59,0.0002219,2]
[367143693,1750669843923,-571.59,0.0002219,2]
[367143694,1750669843932,-571.59,0.0002219,2]
[367143695,1750669843942,-571.59,0.0002219,2]
[367143696,1750669843951,-571.77312975,0.0002219,2]
[367143697,1750669843961,-1566.89,0.0002219,2]
[367143698,1750669843971,-1566.89,0.0002219,2]
[367143699,1750669843980,-1566.89,0.0002219,2]
[367143700,1750669843989,-1566.89,0.0002219,2]
[367143701,1750669843999,-1566.89,0.0002219,2]
[367143702,1750669844008,-1566.89,0.0002219,2]
[367143703,1750669844017,-1566.89,0.0002219,2]
[367143704,1750669844027,-1566.89,0.0002219,2]
[367143705,1750669844036,-1567.11681203,0.0002219,2]
[367143706,1750669844045,-460.0,0.00022191,2]
[367143707,1750669844055,-460.0,0.00022191,2]
[367143708,1750669844065,-460.0,0.00022191,2]
[367143709,1750669844074,-471.9,0.00022191,2]
[367143710,1750669844083,-460.0,0.00022191,2]
[367143711,1750669844093,-460.0,0.00022191,2]
[367143712,1750669844102,-460.0,0.00022191,2]
[367143713,1750669844112,-460.0,0.00022191,2]
[367143714,1750669844122,-460.0,0.00022191,2]
[367143715,1750669844131,-834.62,0.00022191,2]
[367143716,1750669844140,-460.0,0.00022191,2]
[367143717,1750669844149,-460.0,0.00022191,2]
[367143718,1750669844158,-460.0,0.00022191,2]
[367143719,1750669844168,-460.0,0.00022191,2]
[367143720,1750669844177,-460.0,0.00022191,2]
[367143721,1750669844187,-460.0,0.00022191,2]
[367143722,1750669844197,-460.0,0.00022191,2]
[367143723,1750669844207,-1195.72,0.00022191,2]
[367143724,1750669844216,-460.0,0.00022191,2]
[367143725,1750669844225,-460.0,0.00022191,2]
[367143726,1750669844234,-460.0,0.00022191,2]
[367143727,1750669844244,-608.63,0.00022191,2]
[367143728,1750669844253,-460.0,0.00022191,2]
[367143729,1750669844262,-300.0,0.00022191,2]
[367143730,1750669844271,-300.81179801,0.00022191,2]
[367143731,1750669844281,-787.23,0.00022191,2]
[367143732,1750669844290,-460.0,0.00022191,2]
[367143733,1750669844300,-460.0,0.00022191,2]
[367143734,1750669844309,-460.0,0.00022191,2]
[367143735,1750669844319,-460.0,0.00022191,2]
[367143736,1750669844328,-429.10236389,0.00022191,2]
[367143737,1750669844337,-460.0,0.00022191,2]
[367143738,1750669844346,-991.08,0.00022191,2]
[367143739,1750669844356,-460.0,0.00022191,2]
[367143740,1750669844366,-460.0,0.00022191,2]
[367143741,1750669844375,-950.54,0.00022191,2]
[367143742,1750669844384,-460.0,0.00022191,2]
[367143743,1750669844397,-1584.48,0.00022191,2]
[367143744,1750669844407,-641.42,0.00022191,2]
[367143745,1750669844416,-460.0,0.00022191,2]
[367143746,1750669844425,-260.87440124,0.00022191,2]
[367143747,1750669844437,-460.0,0.00022191,2]
[367143748,1750669844446,-2854.73,0.00022191,2]
[367143749,1750669844456,-460.0,0.00022191,2]
[367143750,1750669844466,-1542.54,0.00022191,2]
[367143751,1750669844476,-460.0,0.00022191,2]
[367143752,1750669844485,-460.0,0.00022191,2]
[367143753,1750669844494,-1028.14,0.00022191,2]
[367143754,1750669844504,-243.83389583,0.00022191,2]
[367143755,1750669844513,-460.0,0.00022191,2]
[367143756,1750669844522,-460.0,0.00022191,2]
[367143757,1750669844531,-772.48,0.00022191,2]
[367143758,1750669844541,-460.0,0.00022191,2]
[367143759,1750669844551,-969.46,0.00022191,2]
[367143760,1750669844561,-460.0,0.00022191,2]
[367143761,1750669844570,-460.0,0.00022191,2]
[367143762,1750669844580,-460.0,0.00022191,2]
[367143763,1750669844590,-460.0,0.00022191,2]
[367143764,1750669844599,-1015.12,0.00022191,2]
[367143765,1750669844609,-1133.92,0.00022191,2]
[367143766,1750669844618,-460.0,0.00022191,2]
[367143767,1750669844627,-460.0,0.00022191,2]
[367143768,1750669844636,-548.44906597,0.00022191,2]
[367143769,1750669844646,-460.0,0.00022191,2]
[367143770,1750669844655,-460.0,0.00022191,2]
[367143771,1750669844666,-460.0,0.00022191,2]
[367143772,1750669844675,-641.82,0.00022191,2]
[367143773,1750669844685,-3225.45,0.00022191,2]
[367143774,1750669844695,-460.0,0.00022191,2]
[367143775,1750669844705,-410.50456212,0.00022191,2]
[367143776,1750669844715,-460.0,0.00022191,2]
[367143777,1750669844725,-460.0,0.00022191,2]
[367143778,1750669844734,-460.0,0.00022191,2]
[367143779,1750669844744,-241.38102987,0.00022191,2]
[367143780,1750669844754,-460.0,0.00022191,2]
[367143781,1750669844764,-1065.91,0.00022191,2]
[367143782,1750669844773,-643.23,0.00022191,2]
[367143783,1750669844783,-460.0,0.00022191,2]
[367143784,1750669844792,-460.0,0.00022191,2]
[367143785,1750669844802,-460.0,0.00022191,2]
[367143786,1750669844811,-460.0,0.00022191,2]
[367143787,1750669844821,-460.0,0.00022191,2]
[367143788,1750669844831,-460.0,0.00022191,2]
[367143789,1750669844840,-253.11345004,0.00022191,2]
[367143790,1750669844851,-460.0,0.00022191,2]
[367143791,1750669844860,-460.0,0.00022191,2]
[367143792,1750669844870,-460.0,0.00022191,2]
[367143793,1750669844880,-561.3,0.00022191,2]
[367143794,1750669844889,-850.2,0.00022191,2]
[367143795,1750669844899,-543.46,0.00022191,2]
[367143796,1750669844909,-460.0,0.00022191,2]
[367143797,1750669844918,-460.0,0.00022191,2]
[367143798,1750669844928,-460.0,0.00022191,2]
[367143799,1750669844937,-460.0,0.00022191,2]
[367143800,1750669844947,-460.0,0.00022191,2]
[367143801,1750669844956,-460.0,0.00022191,2]
[367143802,1750669844966,-460.0,0.00022191,2]
[367143803,1750669844976,-484.45,0.00022191,2]
[367143804,1750669844986,-460.0,0.00022191,2]
[367143805,1750669844995,-460.0,0.00022191,2]
[367143806,1750669845005,-460.0,0.00022191,2]
[367143807,1750669845015,-460.0,0.00022191,2]
[367143808,1750669845025,-460.0,0.00022191,2]
[367143809,1750669845036,-1193.62,0.00022191,2]
[367143810,1750669845046,-460.0,0.00022191,2]
[367143811,1750669845055,-460.0,0.00022191,2]
[367143812,1750669845065,-460.0,0.00022191,2]
[367143813,1750669845074,-460.0,0.00022191,2]
[367143814,1750669845084,-597.95,0.00022191,2]
[367143815,1750669845093,-197.12501723,0.00022191,2]
[367143816,1750669845102,-495.35,0.00022191,2]
[367143817,1750669845112,-460.0,0.00022191,2]
[367143818,1750669845121,-460.0,0.00022191,2]
[367143819,1750669845131,-460.0,0.00022191,2]
[367143820,1750669845140,-460.0,0.00022191,2]
[367143821,1750669845149,-1875.95,0.00022191,2]
[367143822,1750669845159,-460.0,0.00022191,2]
[367143823,1750669845168,-460.0,0.00022191,2]
[367143824,1750669845177,-460.0,0.00022191,2]
[367143825,1750669845187,-460.0,0.00022191,2]
[367143826,1750669845196,-460.0,0.00022191,2]
[367143827,1750669845205,-264.3309134,0.00022191,2]
[367143828,1750669845214,-460.0,0.00022191,2]
[367143829,1750669845223,-460.0,0.00022191,2]
[367143830,1750669845233,-421.00849292,0.00022191,2]
[367143831,1750669845242,-460.0,0.00022191,2]
[367143832,1750669845251,-861.7,0.00022191,2]
[367143833,1750669845261,-460.26,0.00022191,2]
[367143834,1750669845270,-460.0,0.00022191,2]
[367143835,1750669845280,-1133.92,0.00022191,2]
[367143836,1750669845290,-712.56,0.00022191,2]
[367143837,1750669845301,-460.0,0.00022191,2]
[367143838,1750669845311,-460.0,0.00022191,2]
[367143839,1750669845321,-460.0,0.00022191,2]
[367143840,1750669845332,-460.0,0.00022191,2]
[367143841,1750669845342,-833.21,0.00022191,2]
[367143842,1750669845352,-460.0,0.00022191,2]
[367143843,1750669845361,-460.0,0.00022191,2]
[367143844,1750669845370,-460.0,0.00022191,2]
[367143845,1750669845381,-460.0,0.00022191,2]
[367143846,1750669845393,-445.00326608,0.00022191,2]
[367143847,1750669845402,-460.0,0.00022191,2]
[367143848,1750669845412,-460.0,0.00022191,2]
[367143849,1750669845422,-460.0,0.00022191,2]
[367143850,1750669845433,-460.0,0.00022191,2]
[367143851,1750669845443,-460.0,0.00022191,2]
[367143852,1750669845453,-460.0,0.00022191,2]
[367143853,1750669845465,-460.0,0.00022191,2]
[367143854,1750669845475,-460.0,0.00022191,2]
[367143855,1750669845484,-520.29,0.00022191,2]
[367143856,1750669845494,-460.0,0.00022191,2]
[367143857,1750669845505,-460.0,0.00022191,2]
[367143858,1750669845515,-460.0,0.00022191,2]
[367143859,1750669845525,-476.95,0.00022191,2]
[367143860,1750669845534,-449.78252903,0.00022191,2]
[367143861,1750669845544,-790.89,0.00022191,2]
[367143862,1750669845553,-460.0,0.00022191,2]
[367143863,1750669845612,-460.0,0.00022191,2]
[367143864,1750669845621,-460.0,0.00022191,2]
[367143865,1750669845630,-518.16593691,0.00022191,2]
[367143866,1750669845639,-460.0,0.00022191,2]
[367143867,1750669845649,-460.0,0.00022191,2]
[367143868,1750669845658,-1262.23,0.00022191,2]
[367143870,1750669845667,-460.0,0.00022191,2]
[367143871,1750669845676,-460.0,0.00022191,2]
[367143872,1750669845686,-460.0,0.00022191,2]
[367143873,1750669845695,-460.0,0.00022191,2]
[367143874,1750669845704,-414.99324548,0.00022191,2]
[367143875,1750669845713,-460.0,0.00022191,2]
[367143876,1750669845722,-460.0,0.00022191,2]
[367143877,1750669845733,-460.0,0.00022191,2]
[367143878,1750669845742,-460.0,0.00022191,2]
[367143879,1750669845752,-812.99,0.00022191,2]
[367143880,1750669845762,-460.0,0.00022191,2]
[367143881,1750669845772,-484.13,0.00022191,2]
[367143882,1750669845781,-905.42,0.00022191,2]
[367143883,1750669845790,-460.0,0.00022191,2]